[Event "Titled Tuesday Blitz May 16 Late 2023"]
[White "Seletsky, Grigory"]
[Black "Fajdetic, Hrvoje"]
[WhiteFideId "14112191"]
[BlackFideId "14501945"]
[WhiteElo "2491"]
[BlackElo "2185"]
[Result "1-0"]
[Round "02"]
[TimeControl "180+2"]
[Date "2023.05.16"]
[WhiteClock "0:01:08"]
[BlackClock "0:00:00"]

1. e4 {[%clk 0:02:58]}  e6 {[%clk 0:02:58]} 2. Nf3 {[%clk 0:02:57]}  d5 {[%clk 0:02:57]} 3. Nc3 {[%clk 0:02:58]}  dxe4 {[%clk 0:02:54]} 4. Nxe4 {[%clk 0:02:56]}  Nd7 {[%clk 0:02:52]} 5. d4 {[%clk 0:02:54]}  Ngf6 {[%clk 0:02:51]} 6. Bd3 {[%clk 0:02:51]}  Nxe4 {[%clk 0:02:49]} 7. Bxe4 {[%clk 0:02:52]}  Nf6 {[%clk 0:02:50]} 8. Bd3 {[%clk 0:02:52]}  c5 {[%clk 0:02:49]} 9. O-O {[%clk 0:02:47]}  cxd4 {[%clk 0:02:43]} 10. Nxd4 {[%clk 0:02:46]}  Bc5 {[%clk 0:02:42]} 11. Nb3 {[%clk 0:02:31]}  Bd6 {[%clk 0:02:38]} 12. c4 {[%clk 0:02:26]}  Qc7 {[%clk 0:02:30]} 13. h3 {[%clk 0:02:24]}  b6 {[%clk 0:02:21]} 14. Nd4 {[%clk 0:02:21]}  a6 {[%clk 0:02:20]} 15. b3 {[%clk 0:02:20]}  Bb7 {[%clk 0:02:18]} 16. Bb2 {[%clk 0:02:20]}  Rd8 {[%clk 0:02:15]} 17. Qe2 {[%clk 0:02:21]}  Bh2+ {[%clk 0:01:57]} 18. Kh1 {[%clk 0:02:19]}  Be5 {[%clk 0:01:57]} 19. Nb5 {[%clk 0:02:19]}  axb5 {[%clk 0:01:50]} 20. Bxe5 {[%clk 0:02:18]}  Qc6 {[%clk 0:01:41]} 21. f3 {[%clk 0:02:18]}  bxc4 {[%clk 0:01:33]} 22. Bxc4 {[%clk 0:02:18]}  O-O {[%clk 0:01:27]} 23. a4 {[%clk 0:02:18]}  Nd7 {[%clk 0:01:06]} 24. Bb2 {[%clk 0:02:14]}  Qd6 {[%clk 0:00:22]} 25. Rad1 {[%clk 0:02:07]}  Qg3 {[%clk 0:00:21]} 26. Qf2 {[%clk 0:01:54]}  Qxf2 {[%clk 0:00:20]} 27. Rxf2 {[%clk 0:01:55]}  Nc5 {[%clk 0:00:21]} 28. Rfd2 {[%clk 0:01:55]}  Rxd2 {[%clk 0:00:19]} 29. Rxd2 {[%clk 0:01:56]}  Re8 {[%clk 0:00:17]} 30. Be5 {[%clk 0:01:53]}  f6 {[%clk 0:00:16]} 31. Bc7 {[%clk 0:01:53]}  Bd5 {[%clk 0:00:10]} 32. Bxd5 {[%clk 0:01:47]}  exd5 {[%clk 0:00:11]} 33. Bxb6 {[%clk 0:01:46]}  Nxb3 {[%clk 0:00:10]} 34. Rxd5 {[%clk 0:01:45]}  Re1+ {[%clk 0:00:09]} 35. Kh2 {[%clk 0:01:44]}  Ra1 {[%clk 0:00:10]} 36. a5 {[%clk 0:01:44]}  Kf7 {[%clk 0:00:07]} 37. Rb5 {[%clk 0:01:39]}  Nd2 {[%clk 0:00:07]} 38. Kg3 {[%clk 0:01:35]}  g5 {[%clk 0:00:07]} 39. h4 {[%clk 0:01:32]}  h6 {[%clk 0:00:06]} 40. hxg5 {[%clk 0:01:30]}  hxg5 {[%clk 0:00:06]} 41. Bd8 {[%clk 0:01:11]}  Ra2 {[%clk 0:00:05]} 42. Rb7+ {[%clk 0:01:09]}  Kg6 {[%clk 0:00:00]} 43. Rb6 {[%clk 0:01:08]} 1-0


[Site "https://www.chess.com"]

[Event "Titled Tuesday Blitz May 16 Late 2023"]
[White "Rose, Felix"]
[Black "SereneSalmon"]
[WhiteFideId "5105722"]
[WhiteElo "2039"]
[BlackElo "2497"]
[Result "0-1"]
[Round "02"]
[TimeControl "180+2"]
[Date "2023.05.16"]
[WhiteClock "0:00:12"]
[BlackClock "0:00:23"]

1. d4 {[%clk 0:03:00]}  Nf6 {[%clk 0:03:00]} 2. Nf3 {[%clk 0:02:59]}  d5 {[%clk 0:03:00]} 3. e3 {[%clk 0:02:58]}  e6 {[%clk 0:02:58]} 4. Bd3 {[%clk 0:02:57]}  b6 {[%clk 0:02:59]} 5. O-O {[%clk 0:02:57]}  Bb7 {[%clk 0:02:58]} 6. Nbd2 {[%clk 0:02:57]}  Nbd7 {[%clk 0:02:58]} 7. Re1 {[%clk 0:02:57]}  Ne4 {[%clk 0:02:53]} 8. c4 {[%clk 0:02:53]}  c5 {[%clk 0:02:49]} 9. cxd5 {[%clk 0:02:51]}  exd5 {[%clk 0:02:46]} 10. dxc5 {[%clk 0:02:48]}  Nexc5 {[%clk 0:02:45]} 11. Nb3 {[%clk 0:02:44]}  Nxd3 {[%clk 0:02:44]} 12. Qxd3 {[%clk 0:02:43]}  Be7 {[%clk 0:02:37]} 13. Bd2 {[%clk 0:02:42]}  O-O {[%clk 0:02:35]} 14. Bc3 {[%clk 0:02:42]}  Nc5 {[%clk 0:02:30]} 15. Qc2 {[%clk 0:02:20]}  Rc8 {[%clk 0:02:27]} 16. Nxc5 {[%clk 0:02:05]}  bxc5 {[%clk 0:02:28]} 17. Qd2 {[%clk 0:02:01]}  Re8 {[%clk 0:02:11]} 18. Rac1 {[%clk 0:01:48]}  Bd6 {[%clk 0:02:11]} 19. b3 {[%clk 0:01:43]}  Qd7 {[%clk 0:02:10]} 20. Bb2 {[%clk 0:01:40]}  Qg4 {[%clk 0:01:53]} 21. h3 {[%clk 0:01:39]}  Qg6 {[%clk 0:01:52]} 22. Qe2 {[%clk 0:01:32]}  d4 {[%clk 0:01:50]} 23. Nh4 {[%clk 0:01:01]}  Qg5 {[%clk 0:01:29]} 24. Qg4 {[%clk 0:00:57]}  Qxg4 {[%clk 0:01:25]} 25. hxg4 {[%clk 0:00:57]}  dxe3 {[%clk 0:01:25]} 26. Rxe3 {[%clk 0:00:55]}  Rxe3 {[%clk 0:01:23]} 27. fxe3 {[%clk 0:00:56]}  g6 {[%clk 0:01:20]} 28. Kf2 {[%clk 0:00:50]}  Re8 {[%clk 0:01:16]} 29. Nf3 {[%clk 0:00:43]}  Bc8 {[%clk 0:01:07]} 30. g5 {[%clk 0:00:39]}  Bf5 {[%clk 0:00:53]} 31. Ba3 {[%clk 0:00:31]}  Rc8 {[%clk 0:00:48]} 32. Nd2 {[%clk 0:00:26]}  Be7 {[%clk 0:00:44]} 33. Kf3 {[%clk 0:00:18]}  Bxg5 {[%clk 0:00:40]} 34. Rxc5 {[%clk 0:00:15]}  Re8 {[%clk 0:00:37]} 35. e4 {[%clk 0:00:13]}  Bc8 {[%clk 0:00:33]} 36. Nc4 {[%clk 0:00:11]}  Be7 {[%clk 0:00:26]} 37. Ra5 {[%clk 0:00:12]}  Bb7 {[%clk 0:00:20]} 38. Bxe7 {[%clk 0:00:11]}  Rxe7 {[%clk 0:00:21]} 39. Ke3 {[%clk 0:00:10]}  Rxe4+ {[%clk 0:00:20]} 40. Kd3 {[%clk 0:00:11]}  Rg4 {[%clk 0:00:20]} 41. Rxa7 {[%clk 0:00:11]}  Bxg2 {[%clk 0:00:20]} 42. a4 {[%clk 0:00:11]}  h5 {[%clk 0:00:20]} 43. a5 {[%clk 0:00:12]}  h4 {[%clk 0:00:21]} 44. a6 {[%clk 0:00:12]}  h3 {[%clk 0:00:22]} 45. Re7 {[%clk 0:00:10]}  h2 {[%clk 0:00:20]} 46. Re8+ {[%clk 0:00:09]}  Kg7 {[%clk 0:00:20]} 47. Ne3 {[%clk 0:00:08]}  h1=Q {[%clk 0:00:20]} 48. Nxg4 {[%clk 0:00:09]}  Qd1+ {[%clk 0:00:20]} 49. Kc3 {[%clk 0:00:08]}  Qxg4 {[%clk 0:00:20]} 50. a7 {[%clk 0:00:09]}  Qg3+ {[%clk 0:00:20]} 51. Kb2 {[%clk 0:00:09]}  Qc7 {[%clk 0:00:20]} 52. a8=Q {[%clk 0:00:09]}  Bxa8 {[%clk 0:00:20]} 53. Rxa8 {[%clk 0:00:10]}  Qe5+ {[%clk 0:00:20]} 54. Ka2 {[%clk 0:00:10]}  g5 {[%clk 0:00:20]} 55. Ra4 {[%clk 0:00:11]}  Qe2+ {[%clk 0:00:19]} 56. Ka3 {[%clk 0:00:11]}  g4 {[%clk 0:00:20]} 57. Rxg4+ {[%clk 0:00:11]}  Qxg4 {[%clk 0:00:20]} 58. b4 {[%clk 0:00:12]}  f5 {[%clk 0:00:20]} 59. b5 {[%clk 0:00:13]}  f4 {[%clk 0:00:21]} 60. b6 {[%clk 0:00:14]}  Qd7 {[%clk 0:00:22]} 61. b7 {[%clk 0:00:15]}  Qxb7 {[%clk 0:00:22]} 62. Ka4 {[%clk 0:00:15]}  f3 {[%clk 0:00:23]} 63. Ka5 {[%clk 0:00:12]}  f2 {[%clk 0:00:23]} 0-1


[Site "https://www.chess.com"]

[Event "Titled Tuesday Blitz May 16 Late 2023"]
[White "Sanchez Enriquez, Oscar Gerardo"]
[Black "Ward, Ieuan C"]
[WhiteFideId "5106311"]
[BlackFideId "406627"]
[WhiteElo "2387"]
[BlackElo "2296"]
[Result "1-0"]
[Round "02"]
[TimeControl "180+2"]
[Date "2023.05.16"]
[WhiteClock "0:00:34"]
[BlackClock "0:00:10"]

1. d4 {[%clk 0:02:55]}  e5 {[%clk 0:03:00]} 2. dxe5 {[%clk 0:02:54]}  Nc6 {[%clk 0:03:00]} 3. Nf3 {[%clk 0:02:55]}  Qe7 {[%clk 0:03:01]} 4. Bf4 {[%clk 0:02:56]}  Qb4+ {[%clk 0:03:01]} 5. Bd2 {[%clk 0:02:56]}  Qxb2 {[%clk 0:03:02]} 6. Nc3 {[%clk 0:02:57]}  Bb4 {[%clk 0:03:02]} 7. Rb1 {[%clk 0:02:57]}  Qa3 {[%clk 0:03:03]} 8. Rb3 {[%clk 0:02:55]}  Qa5 {[%clk 0:03:03]} 9. a3 {[%clk 0:02:56]}  Bxc3 {[%clk 0:03:03]} 10. Bxc3 {[%clk 0:02:56]}  Qc5 {[%clk 0:03:04]} 11. e3 {[%clk 0:02:55]}  Nge7 {[%clk 0:03:04]} 12. Bb2 {[%clk 0:02:46]}  a6 {[%clk 0:03:03]} 13. Be2 {[%clk 0:02:45]}  O-O {[%clk 0:03:03]} 14. O-O {[%clk 0:02:44]}  Ng6 {[%clk 0:03:02]} 15. a4 {[%clk 0:02:44]}  Re8 {[%clk 0:02:55]} 16. Qa1 {[%clk 0:02:33]}  Ncxe5 {[%clk 0:02:47]} 17. Nd4 {[%clk 0:02:28]}  d6 {[%clk 0:02:33]} 18. Rc3 {[%clk 0:02:23]}  Qa5 {[%clk 0:02:29]} 19. Nb3 {[%clk 0:02:17]}  Qd5 {[%clk 0:02:12]} 20. Rxc7 {[%clk 0:02:14]}  b5 {[%clk 0:02:07]} 21. Rd1 {[%clk 0:02:09]}  Qe4 {[%clk 0:02:01]} 22. Rd4 {[%clk 0:01:58]}  Qf5 {[%clk 0:02:00]} 23. axb5 {[%clk 0:01:56]}  Bd7 {[%clk 0:00:48]} 24. bxa6 {[%clk 0:01:49]}  Bc6 {[%clk 0:00:46]} 25. Rxd6 {[%clk 0:01:40]}  Qg5 {[%clk 0:00:35]} 26. Rcxc6 {[%clk 0:01:25]}  Nxc6 {[%clk 0:00:36]} 27. Rxc6 {[%clk 0:01:23]}  Nh4 {[%clk 0:00:32]} 28. Qf1 {[%clk 0:01:00]}  Rad8 {[%clk 0:00:22]} 29. Rc5 {[%clk 0:00:55]}  Qg6 {[%clk 0:00:20]} 30. Bd3 {[%clk 0:00:47]}  Qg4 {[%clk 0:00:18]} 31. h3 {[%clk 0:00:43]}  Qb4 {[%clk 0:00:13]} 32. Rc4 {[%clk 0:00:37]}  Qe7 {[%clk 0:00:13]} 33. Re4 {[%clk 0:00:35]}  Qg5 {[%clk 0:00:13]} 34. Rg4 {[%clk 0:00:35]}  Qf6 {[%clk 0:00:10]} 35. Bxf6 {[%clk 0:00:34]} 1-0


[Site "https://www.chess.com"]

[Event "Titled Tuesday Blitz May 16 Late 2023"]
[White "ArtemDyachuk"]
[Black "Vifleemskaia, Svetlana"]
[BlackFideId "4129490"]
[WhiteElo "2493"]
[BlackElo "1930"]
[Result "1-0"]
[Round "02"]
[TimeControl "180+2"]
[Date "2023.05.16"]
[WhiteClock "0:00:31"]
[BlackClock "0:00:12"]

1. e4 {[%clk 0:03:00]}  e5 {[%clk 0:02:29]} 2. Bc4 {[%clk 0:02:57]}  Nf6 {[%clk 0:02:28]} 3. d3 {[%clk 0:02:55]}  c6 {[%clk 0:02:27]} 4. Nf3 {[%clk 0:02:53]}  d5 {[%clk 0:02:26]} 5. Bb3 {[%clk 0:02:54]}  Bd6 {[%clk 0:02:20]} 6. O-O {[%clk 0:02:45]}  O-O {[%clk 0:02:17]} 7. Nc3 {[%clk 0:02:39]}  d4 {[%clk 0:02:08]} 8. Ne2 {[%clk 0:02:39]}  Be6 {[%clk 0:02:03]} 9. Ng3 {[%clk 0:02:36]}  Re8 {[%clk 0:01:53]} 10. Nf5 {[%clk 0:02:29]}  Bf8 {[%clk 0:01:51]} 11. Bg5 {[%clk 0:02:19]}  Nbd7 {[%clk 0:01:37]} 12. c3 {[%clk 0:01:59]}  Bxf5 {[%clk 0:01:20]} 13. exf5 {[%clk 0:01:58]}  Nc5 {[%clk 0:01:18]} 14. Bc2 {[%clk 0:01:54]}  h6 {[%clk 0:01:15]} 15. Bh4 {[%clk 0:01:49]}  e4 {[%clk 0:01:07]} 16. dxe4 {[%clk 0:01:39]}  d3 {[%clk 0:01:06]} 17. e5 {[%clk 0:01:34]}  dxc2 {[%clk 0:01:04]} 18. Qxc2 {[%clk 0:01:34]}  Qd3 {[%clk 0:00:55]} 19. Qxd3 {[%clk 0:01:29]}  Nxd3 {[%clk 0:00:54]} 20. exf6 {[%clk 0:01:29]}  gxf6 {[%clk 0:00:41]} 21. Rfd1 {[%clk 0:01:22]}  Nxb2 {[%clk 0:00:34]} 22. Rd7 {[%clk 0:01:22]}  Na4 {[%clk 0:00:31]} 23. Bxf6 {[%clk 0:01:18]}  Bg7 {[%clk 0:00:29]} 24. Bd4 {[%clk 0:01:14]}  c5 {[%clk 0:00:27]} 25. Bxg7 {[%clk 0:01:07]}  Kxg7 {[%clk 0:00:26]} 26. Rb1 {[%clk 0:01:04]}  b6 {[%clk 0:00:26]} 27. h4 {[%clk 0:01:02]}  Nxc3 {[%clk 0:00:24]} 28. Rb3 {[%clk 0:00:59]}  Ne4 {[%clk 0:00:21]} 29. Re3 {[%clk 0:00:53]}  Nf6 {[%clk 0:00:20]} 30. Rxe8 {[%clk 0:00:52]}  Nxe8 {[%clk 0:00:19]} 31. Ne5 {[%clk 0:00:49]}  Kf6 {[%clk 0:00:19]} 32. Ng4+ {[%clk 0:00:48]}  Kxf5 {[%clk 0:00:17]} 33. Nxh6+ {[%clk 0:00:47]}  Kg6 {[%clk 0:00:17]} 34. Nxf7 {[%clk 0:00:46]}  Nf6 {[%clk 0:00:17]} 35. Re7 {[%clk 0:00:33]}  Nd5 {[%clk 0:00:17]} 36. Rd7 {[%clk 0:00:33]}  Nf6 {[%clk 0:00:16]} 37. Rc7 {[%clk 0:00:34]}  Nd5 {[%clk 0:00:16]} 38. Rb7 {[%clk 0:00:34]}  c4 {[%clk 0:00:12]} 39. Ne5+ {[%clk 0:00:33]}  Kh5 {[%clk 0:00:12]} 40. Rh7# {[%clk 0:00:31]} 1-0


[Site "https://www.chess.com"]

[Event "Titled Tuesday Blitz May 16 Late 2023"]
[White "Ezat, Mohamed"]
[Black "Georg, Heinz"]
[WhiteFideId "10600906"]
[BlackFideId "4607295"]
[WhiteElo "2386"]
[BlackElo "2293"]
[Result "1-0"]
[Round "02"]
[TimeControl "180+2"]
[Date "2023.05.16"]
[WhiteClock "0:00:15"]
[BlackClock "0:00:06"]

1. d4 {[%clk 0:02:55]}  e6 {[%clk 0:02:59]} 2. c4 {[%clk 0:02:54]}  f5 {[%clk 0:03:00]} 3. Nc3 {[%clk 0:02:53]}  Nf6 {[%clk 0:03:00]} 4. e3 {[%clk 0:02:52]}  Be7 {[%clk 0:02:57]} 5. Bd3 {[%clk 0:02:52]}  c5 {[%clk 0:02:54]} 6. Qc2 {[%clk 0:02:47]}  Nc6 {[%clk 0:02:52]} 7. Nge2 {[%clk 0:02:42]}  Nb4 {[%clk 0:02:52]} 8. Qb1 {[%clk 0:02:42]}  Nxd3+ {[%clk 0:02:52]} 9. Qxd3 {[%clk 0:02:42]}  b6 {[%clk 0:02:49]} 10. O-O {[%clk 0:02:40]}  Bb7 {[%clk 0:02:49]} 11. d5 {[%clk 0:02:37]}  Qb8 {[%clk 0:01:48]} 12. Rd1 {[%clk 0:02:33]}  O-O {[%clk 0:01:44]} 13. b3 {[%clk 0:02:28]}  g6 {[%clk 0:01:35]} 14. Bb2 {[%clk 0:02:26]}  e5 {[%clk 0:01:35]} 15. d6 {[%clk 0:02:25]}  Bd8 {[%clk 0:01:35]} 16. Nb5 {[%clk 0:02:23]}  Re8 {[%clk 0:01:24]} 17. f4 {[%clk 0:02:09]}  exf4 {[%clk 0:00:57]} 18. exf4 {[%clk 0:02:01]}  a6 {[%clk 0:00:57]} 19. Nc7 {[%clk 0:01:56]}  Rf8 {[%clk 0:00:42]} 20. Nxa8 {[%clk 0:01:46]}  Qxa8 {[%clk 0:00:40]} 21. Qg3 {[%clk 0:01:30]}  Ne4 {[%clk 0:00:38]} 22. Qe3 {[%clk 0:01:27]}  b5 {[%clk 0:00:26]} 23. Nc3 {[%clk 0:01:16]}  Bf6 {[%clk 0:00:24]} 24. Rab1 {[%clk 0:01:10]}  Nxc3 {[%clk 0:00:23]} 25. Bxc3 {[%clk 0:01:09]}  Bxc3 {[%clk 0:00:18]} 26. Qxc3 {[%clk 0:01:07]}  Bxg2 {[%clk 0:00:18]} 27. cxb5 {[%clk 0:01:00]}  axb5 {[%clk 0:00:17]} 28. Qxc5 {[%clk 0:00:59]}  Be4 {[%clk 0:00:16]} 29. Rb2 {[%clk 0:00:58]}  Rc8 {[%clk 0:00:15]} 30. Qd4 {[%clk 0:00:57]}  Qc6 {[%clk 0:00:14]} 31. Re2 {[%clk 0:00:18]}  Bf3 {[%clk 0:00:12]} 32. Rde1 {[%clk 0:00:15]}  Bxe2 {[%clk 0:00:12]} 33. Rxe2 {[%clk 0:00:16]}  Qf3 {[%clk 0:00:08]} 34. Qd2 {[%clk 0:00:12]}  Rc1+ {[%clk 0:00:05]} 35. Qxc1 {[%clk 0:00:11]}  Qxe2 {[%clk 0:00:06]} 36. Qc8+ {[%clk 0:00:12]}  Kg7 {[%clk 0:00:05]} 37. Qxd7+ {[%clk 0:00:12]}  Kh6 {[%clk 0:00:06]} 38. Qe7 {[%clk 0:00:11]}  Qd1+ {[%clk 0:00:05]} 39. Kf2 {[%clk 0:00:12]}  Qd2+ {[%clk 0:00:04]} 40. Qe2 {[%clk 0:00:12]}  Qxd6 {[%clk 0:00:04]} 41. Kg3 {[%clk 0:00:11]}  g5 {[%clk 0:00:03]} 42. Qe3 {[%clk 0:00:10]}  Kg6 {[%clk 0:00:02]} 43. h4 {[%clk 0:00:09]}  gxf4+ {[%clk 0:00:02]} 44. Qxf4 {[%clk 0:00:09]}  Qxf4+ {[%clk 0:00:03]} 45. Kxf4 {[%clk 0:00:09]}  Kf6 {[%clk 0:00:04]} 46. a4 {[%clk 0:00:09]}  bxa4 {[%clk 0:00:04]} 47. bxa4 {[%clk 0:00:09]}  Ke6 {[%clk 0:00:04]} 48. a5 {[%clk 0:00:10]}  Kd5 {[%clk 0:00:05]} 49. Kxf5 {[%clk 0:00:10]}  Kc6 {[%clk 0:00:05]} 50. Kf6 {[%clk 0:00:11]}  Kb5 {[%clk 0:00:06]} 51. Kg7 {[%clk 0:00:12]}  Kxa5 {[%clk 0:00:07]} 52. Kxh7 {[%clk 0:00:12]}  Kb5 {[%clk 0:00:08]} 53. Kg7 {[%clk 0:00:13]}  Kc6 {[%clk 0:00:09]} 54. h5 {[%clk 0:00:14]}  Kd6 {[%clk 0:00:06]} 55. h6 {[%clk 0:00:15]} 1-0


[Site "https://www.chess.com"]

[Event "Titled Tuesday Blitz May 16 Late 2023"]
[White "Rodriguez Santiago, Jaime"]
[Black "Tomaszewski, Kacper"]
[WhiteFideId "3100898"]
[BlackFideId "1127373"]
[WhiteElo "2025"]
[BlackElo "2211"]
[Result "1-0"]
[Round "02"]
[TimeControl "180+2"]
[Date "2023.05.16"]
[WhiteClock "0:00:27"]
[BlackClock "0:00:08"]

1. c4 {[%clk 0:03:00]}  g6 {[%clk 0:02:59]} 2. Nc3 {[%clk 0:02:59]}  Bg7 {[%clk 0:02:59]} 3. g3 {[%clk 0:02:59]}  e6 {[%clk 0:02:59]} 4. Bg2 {[%clk 0:02:59]}  Ne7 {[%clk 0:02:59]} 5. e4 {[%clk 0:02:58]}  c5 {[%clk 0:02:59]} 6. Nge2 {[%clk 0:02:58]}  Nbc6 {[%clk 0:02:59]} 7. O-O {[%clk 0:02:58]}  O-O {[%clk 0:02:59]} 8. d3 {[%clk 0:02:58]}  b6 {[%clk 0:02:59]} 9. Be3 {[%clk 0:02:57]}  Bb7 {[%clk 0:03:00]} 10. Rb1 {[%clk 0:02:55]}  Nd4 {[%clk 0:02:52]} 11. b4 {[%clk 0:02:51]}  Nxe2+ {[%clk 0:02:41]} 12. Nxe2 {[%clk 0:02:50]}  cxb4 {[%clk 0:02:40]} 13. Rxb4 {[%clk 0:02:49]}  d5 {[%clk 0:02:39]} 14. exd5 {[%clk 0:02:47]}  exd5 {[%clk 0:02:39]} 15. c5 {[%clk 0:02:46]}  Nc6 {[%clk 0:02:36]} 16. Rb1 {[%clk 0:02:41]}  d4 {[%clk 0:02:32]} 17. Bf4 {[%clk 0:02:39]}  Na5 {[%clk 0:02:24]} 18. cxb6 {[%clk 0:02:37]}  Bxg2 {[%clk 0:02:20]} 19. Kxg2 {[%clk 0:02:36]}  axb6 {[%clk 0:02:18]} 20. Nc1 {[%clk 0:02:32]}  Nb7 {[%clk 0:02:05]} 21. Qf3 {[%clk 0:02:29]}  Nc5 {[%clk 0:02:00]} 22. Re1 {[%clk 0:02:27]}  Na4 {[%clk 0:01:44]} 23. Qc6 {[%clk 0:02:18]}  Nc3 {[%clk 0:01:39]} 24. Rxb6 {[%clk 0:02:16]}  Nd5 {[%clk 0:01:32]} 25. Rb2 {[%clk 0:02:05]}  Nxf4+ {[%clk 0:01:28]} 26. gxf4 {[%clk 0:02:06]}  Bh6 {[%clk 0:01:21]} 27. Qf3 {[%clk 0:01:59]}  Qf6 {[%clk 0:01:14]} 28. Re4 {[%clk 0:01:53]}  Rfe8 {[%clk 0:00:59]} 29. Rbe2 {[%clk 0:01:45]}  Rxe4 {[%clk 0:00:57]} 30. Rxe4 {[%clk 0:01:45]}  Rd8 {[%clk 0:00:54]} 31. Ne2 {[%clk 0:01:42]}  Bf8 {[%clk 0:00:49]} 32. Ng3 {[%clk 0:01:38]}  h5 {[%clk 0:00:47]} 33. f5 {[%clk 0:01:18]}  h4 {[%clk 0:00:44]} 34. Ne2 {[%clk 0:01:17]}  gxf5 {[%clk 0:00:38]} 35. Rf4 {[%clk 0:01:04]}  Qg5+ {[%clk 0:00:38]} 36. Kh3 {[%clk 0:01:04]}  Rd6 {[%clk 0:00:16]} 37. Rxf5 {[%clk 0:01:01]}  Qg7 {[%clk 0:00:16]} 38. Nf4 {[%clk 0:00:56]}  Rh6 {[%clk 0:00:10]} 39. Nh5 {[%clk 0:00:42]}  Qg1 {[%clk 0:00:09]} 40. Qg4+ {[%clk 0:00:34]}  Qxg4+ {[%clk 0:00:06]} 41. Kxg4 {[%clk 0:00:35]}  h3 {[%clk 0:00:06]} 42. Kxh3 {[%clk 0:00:32]}  Kh7 {[%clk 0:00:04]} 43. Kg4 {[%clk 0:00:32]}  Kg6 {[%clk 0:00:04]} 44. Rf6+ {[%clk 0:00:30]}  Kh7 {[%clk 0:00:02]} 45. Rxh6+ {[%clk 0:00:29]}  Bxh6 {[%clk 0:00:01]} 46. Nf6+ {[%clk 0:00:29]}  Kg6 {[%clk 0:00:02]} 47. Ne4 {[%clk 0:00:28]}  f5+ {[%clk 0:00:02]} 48. Kf3 {[%clk 0:00:27]}  fxe4+ {[%clk 0:00:02]} 49. Kxe4 {[%clk 0:00:28]}  Bg7 {[%clk 0:00:02]} 50. f4 {[%clk 0:00:28]}  Kf7 {[%clk 0:00:02]} 51. a4 {[%clk 0:00:28]}  Ke6 {[%clk 0:00:02]} 52. h4 {[%clk 0:00:28]}  Kd6 {[%clk 0:00:03]} 53. a5 {[%clk 0:00:28]}  Kc5 {[%clk 0:00:03]} 54. Kf5 {[%clk 0:00:28]}  Kb5 {[%clk 0:00:03]} 55. Kg6 {[%clk 0:00:29]}  Bf8 {[%clk 0:00:03]} 56. h5 {[%clk 0:00:28]}  Kxa5 {[%clk 0:00:04]} 57. h6 {[%clk 0:00:28]}  Bxh6 {[%clk 0:00:02]} 58. Kxh6 {[%clk 0:00:28]}  Kb4 {[%clk 0:00:03]} 59. f5 {[%clk 0:00:29]}  Kc3 {[%clk 0:00:04]} 60. f6 {[%clk 0:00:30]}  Kxd3 {[%clk 0:00:05]} 61. f7 {[%clk 0:00:30]}  Kc2 {[%clk 0:00:05]} 62. f8=Q {[%clk 0:00:31]}  d3 {[%clk 0:00:06]} 63. Qc5+ {[%clk 0:00:30]}  Kd1 {[%clk 0:00:06]} 64. Kg5 {[%clk 0:00:30]}  d2 {[%clk 0:00:06]} 65. Kf4 {[%clk 0:00:30]}  Ke1 {[%clk 0:00:07]} 66. Qe3+ {[%clk 0:00:30]}  Kd1 {[%clk 0:00:07]} 67. Kf3 {[%clk 0:00:28]}  Kc2 {[%clk 0:00:07]} 68. Qc5+ {[%clk 0:00:28]}  Kb1 {[%clk 0:00:08]} 69. Qb4+ {[%clk 0:00:27]}  Kc1 {[%clk 0:00:08]} 70. Qc3+ {[%clk 0:00:27]}  Kd1 {[%clk 0:00:08]} 71. Ke3 {[%clk 0:00:27]} 1-0


[Site "https://www.chess.com"]

[Event "Titled Tuesday Blitz May 16 Late 2023"]
[White "Ladan, Nicholas"]
[Black "Bashkansky, Ethan"]
[WhiteFideId "30918855"]
[BlackFideId "2071533"]
[WhiteElo "2167"]
[BlackElo "2284"]
[Result "1-0"]
[Round "02"]
[TimeControl "180+2"]
[Date "2023.05.16"]
[WhiteClock "0:02:08"]
[BlackClock "0:01:57"]

1. d4 {[%clk 0:03:00]}  f5 {[%clk 0:02:59]} 2. g3 {[%clk 0:02:59]}  Nf6 {[%clk 0:03:00]} 3. Bg2 {[%clk 0:03:00]}  g6 {[%clk 0:03:00]} 4. Nh3 {[%clk 0:02:59]}  Bg7 {[%clk 0:03:00]} 5. Nf4 {[%clk 0:02:59]}  O-O {[%clk 0:03:01]} 6. h4 {[%clk 0:03:00]}  Nc6 {[%clk 0:02:51]} 7. h5 {[%clk 0:02:59]}  Qe8 {[%clk 0:02:44]} 8. hxg6 {[%clk 0:02:51]}  hxg6 {[%clk 0:02:44]} 9. Nc3 {[%clk 0:02:38]}  e5 {[%clk 0:02:42]} 10. dxe5 {[%clk 0:02:34]}  Nxe5 {[%clk 0:02:43]} 11. Nb5 {[%clk 0:02:30]}  g5 {[%clk 0:02:24]} 12. Nxc7 {[%clk 0:02:19]}  Qd8 {[%clk 0:02:24]} 13. Bd5+ {[%clk 0:02:12]}  Nxd5 {[%clk 0:02:20]} 14. Qxd5+ {[%clk 0:02:13]}  Rf7 {[%clk 0:01:57]} 15. Nfe6 {[%clk 0:02:08]} 1-0


[Site "https://www.chess.com"]

[Event "Titled Tuesday Blitz May 16 Late 2023"]
[White "KorolDimitriy75"]
[Black "lluiss"]
[WhiteElo "2472"]
[BlackElo "2276"]
[Result "1/2-1/2"]
[Round "02"]
[TimeControl "180+2"]
[Date "2023.05.16"]
[WhiteClock "0:00:14"]
[BlackClock "0:00:38"]

1. d4 {[%clk 0:03:00]}  Nf6 {[%clk 0:02:59]} 2. c4 {[%clk 0:03:00]}  g6 {[%clk 0:02:59]} 3. Nc3 {[%clk 0:03:01]}  d5 {[%clk 0:02:59]} 4. cxd5 {[%clk 0:03:00]}  Nxd5 {[%clk 0:03:00]} 5. e4 {[%clk 0:03:01]}  Nxc3 {[%clk 0:03:00]} 6. bxc3 {[%clk 0:03:02]}  Bg7 {[%clk 0:03:00]} 7. Nf3 {[%clk 0:03:02]}  c5 {[%clk 0:02:59]} 8. Rb1 {[%clk 0:03:03]}  O-O {[%clk 0:02:56]} 9. Be2 {[%clk 0:03:03]}  cxd4 {[%clk 0:02:55]} 10. cxd4 {[%clk 0:03:04]}  Qa5+ {[%clk 0:02:55]} 11. Qd2 {[%clk 0:03:04]}  Qxd2+ {[%clk 0:02:55]} 12. Bxd2 {[%clk 0:03:05]}  e6 {[%clk 0:02:46]} 13. O-O {[%clk 0:03:04]}  Nc6 {[%clk 0:02:46]} 14. d5 {[%clk 0:02:23]}  exd5 {[%clk 0:02:43]} 15. exd5 {[%clk 0:02:24]}  Ne5 {[%clk 0:02:42]} 16. Bb4 {[%clk 0:02:15]}  Re8 {[%clk 0:02:32]} 17. Nxe5 {[%clk 0:02:08]}  Rxe5 {[%clk 0:02:29]} 18. Bf3 {[%clk 0:02:06]}  Bf5 {[%clk 0:02:29]} 19. Rbc1 {[%clk 0:02:05]}  Be4 {[%clk 0:02:14]} 20. Bc3 {[%clk 0:01:23]}  Ree8 {[%clk 0:02:05]} 21. Bxg7 {[%clk 0:01:14]}  Kxg7 {[%clk 0:02:04]} 22. Bxe4 {[%clk 0:00:42]}  Rxe4 {[%clk 0:02:03]} 23. Rc7 {[%clk 0:00:42]}  Rd4 {[%clk 0:01:52]} 24. Rxb7 {[%clk 0:00:37]}  Rxd5 {[%clk 0:01:52]} 25. g3 {[%clk 0:00:21]}  Ra5 {[%clk 0:01:52]} 26. Rd1 {[%clk 0:00:15]}  Rxa2 {[%clk 0:00:43]} 27. Rdd7 {[%clk 0:00:15]}  Rf8 {[%clk 0:00:42]} 28. Rxa7 {[%clk 0:00:14]}  Rxa7 {[%clk 0:00:40]} 29. Rxa7 {[%clk 0:00:15]}  Re8 {[%clk 0:00:38]} 30. Kg2 {[%clk 0:00:14]} 1/2-1/2


[Site "https://www.chess.com"]